bitfinex/quotes_ETHUSD_20240710
["timestamp","ask_amount","ask_price","bid_price","bid_amount"]
[1720587935918,0.258742,3124.1,3122.7,5.56188]
[1720587936075,2.3522,3124.2,3122.8,2.62582064]
[1720587936417,2.3522,3124.2,3123.0,2.55]
[1720587936607,2.3522,3124.2,3123.0,2.61402695]
[1720587937628,0.33537902,3124.5,3123.8,5.11098]
[1720587937845,9.8758,3125.1,3124.2,2.55]
[1720587938321,9.8758,3125.1,3123.2,2.56146]
[1720587938322,2.4158,3125.0,3123.2,2.56146]
[1720587938533,2.4158,3124.9,3123.3,0.256146]
[1720587938738,2.4158,3124.9,3123.0,2.55]
[1720587938739,2.4158,3124.9,3123.1,5.56155]
[1720587939324,2.9658,3124.8,3123.1,5.56155]
[1720587939543,2.9658,3124.8,3123.2,3.372595]
[1720587939714,2.9658,3124.8,3123.2,3.43661767]
[1720587939918,2.9658,3124.8,3123.2,0.811155]
[1720587940118,2.9658,3124.8,3123.1,3.0]
[1720587941662,2.9658,3124.8,3123.0,2.55]
[1720587941663,3.0,3124.7,3123.0,2.55]
[1720587941952,2.9658,3124.6,3123.0,2.55]
[1720587942155,0.29658,3124.5,3123.0,3.12520001]
[1720587942318,0.55,3124.4,3123.0,3.12520001]
[1720587942961,0.55,3124.4,3123.0,0.511171]
[1720587943163,0.55,3124.4,3123.0,3.061171]
[1720587943963,2.4578,3124.3,3123.0,3.061171]
[1720587944159,0.30078,3124.2,3123.0,3.061171]
[1720587948473,0.30078,3124.2,3123.0,2.55]
[1720587948672,2.3941,3124.1,3122.6,2.55]
[1720587948970,2.3941,3124.1,3122.1,9.7862]
[1720587948971,2.9441,3124.1,3122.2,2.55]
[1720587949171,2.258,3123.9,3122.2,2.55]
[1720587949516,2.808,3123.8,3122.2,2.55]
[1720587950680,2.808,3123.8,3122.2,2.61404386]
[1720587950871,2.808,3123.8,3122.3,0.06404386]
[1720587951073,2.258,3123.8,3122.3,0.06404386]
[1720587951272,0.2258,3123.7,3122.4,0.26140439]
[1720587951514,0.2258,3123.7,3122.4,2.82351439]
[1720587954145,0.2258,3123.7,3122.5,0.0640389]
[1720587954355,2.416,3124.2,3123.6,2.55]
[1720587955936,2.3103,3124.7,3123.7,0.06401651]
[1720587956139,2.3103,3124.7,3123.7,0.255]
[1720587956712,2.3103,3124.7,3123.8,0.06401636]
[1720587956913,2.3103,3124.7,3123.7,0.255]
[1720587956914,2.3103,3124.7,3123.6,2.55]
[1720587957113,0.26456667,3124.6,3123.6,2.55]
[1720587957324,0.26456667,3124.6,3123.7,0.06401648]
[1720587960026,0.26456667,3124.6,3123.6,2.61401645]
[1720587960350,2.4604,3124.5,3123.2,2.55]
[1720587960717,2.4604,3124.5,3123.6,2.55]
[1720587960914,0.33536672,3124.8,3123.7,0.06402151]
[1720587961120,0.33536672,3124.8,3124.0,2.55]
[1720587961352,0.33536672,3124.8,3124.0,2.61401087]
[1720587961567,9.8929,3125.3,3124.1,2.56066]
[1720587961718,9.8929,3125.3,3124.1,3.071726]
[1720587961719,0.98929,3125.2,3124.1,3.071726]
[1720587961916,2.7682115,3125.3,3124.1,3.071726]
[1720587962117,2.7682115,3125.3,3124.1,0.511066]
[1720587962343,2.7682115,3125.3,3124.0,2.55]
[1720587962728,2.7682115,3125.3,3123.6,2.55]
[1720587962942,3.0,3125.2,3123.6,2.55]
[1720587963266,2.4542,3125.1,3123.6,2.55]
[1720587963431,0.79542,3125.0,3123.6,2.55]
[1720587964256,0.79542,3125.0,3123.6,2.61401789]
[1720587964566,0.79542,3125.0,3123.6,5.17513789]
[1720587964747,0.79542,3125.0,3124.0,2.55]
[1720587967166,0.24542,3125.0,3124.1,0.06401527]
[1720587967460,0.24542,3125.0,3124.2,0.26140153]
[1720587967861,2.4542,3125.1,3124.2,0.26140153]
[1720587968940,2.4542,3125.1,3124.0,2.55]
[1720587969628,0.55,3125.0,3124.0,2.55]
[1720587970156,2.4542,3125.1,3124.0,2.55]
[1720587971190,0.3353115,3125.3,3124.9,2.55]
[1720587971459,2.4756,3126.1,3125.0,0.31899066]
[1720587971659,2.4756,3126.1,3125.5,2.55]
[1720587972371,12.2,3126.3,3125.5,2.55]
[1720587972537,2.4756,3126.6,3125.5,2.55]
[1720587972737,2.4756,3126.6,3125.9,2.55]
[1720587974071,2.4756,3126.6,3125.5,2.55]
[1720587975628,2.4756,3126.6,3125.5,5.10958]
[1720587976029,2.4756,3126.6,3125.9,2.55]
[1720587976232,0.33517667,3126.9,3125.9,2.55]
[1720587976233,0.33517667,3126.9,3126.0,0.255]
[1720587976627,7.46,3127.4,3126.3,2.55]
[1720587976831,2.4869,3127.5,3126.3,2.55]
[1720587976832,2.4869,3127.5,3126.4,2.55877]
[1720587977027,0.24869,3127.4,3126.7,2.55]
[1720587977235,2.4869,3127.5,3126.7,5.10859]
[1720587977435,0.33513169,3127.8,3126.8,2.55851]
[1720587977962,7.46,3127.9,3126.8,2.55851]
[1720587978148,2.4869,3128.0,3126.8,2.55851]
[1720587978354,0.24869,3127.9,3126.8,2.55851]
[1720587978556,0.24869,3127.9,3126.9,2.55841]
[1720587982347,0.24869,3127.9,3126.7,5.10857]
[1720587983571,0.24869,3127.9,3126.7,2.55]
[1720587983738,2.4417,3127.7,3126.3,2.55]
[1720587984162,0.55,3127.6,3126.3,2.55]
[1720587985136,3.55,3127.6,3126.3,2.55]
[1720587986381,2.4874,3127.5,3125.7,2.55]
[1720587986674,2.4874,3127.5,3125.8,3.0]
[1720587986675,0.55,3127.4,3125.8,3.0]
[1720587986849,2.4874,3127.5,3126.5,2.55]
[1720587987572,2.4874,3127.5,3126.5,5.10875]
[1720587987874,2.4874,3127.5,3126.5,2.55]
[1720587991400,2.4874,3127.5,3126.1,2.55]
[1720587991867,0.55,3127.4,3126.1,2.55]
[1720587992452,2.4874,3127.5,3126.1,2.55]
[1720587993102,2.4874,3127.5,3126.1,5.10909]
[1720587993306,2.4874,3127.5,3126.1,2.55]
[1720587993505,0.24874,3127.4,3126.1,3.060922]
[1720587993826,0.58389315,3127.4,3126.1,3.060922]
[1720587994186,2.4311,3127.3,3125.2,2.279]
[1720587994369,2.9811,3127.3,3125.1,2.80475]
[1720587994574,2.4311,3127.1,3125.5,2.55]
[1720587994772,2.4311,3127.1,3125.6,2.55948]
[1720587994969,5.4311,3127.1,3125.9,2.55]
[1720587995270,5.4311,3127.1,3126.0,0.255]
[1720587995271,2.4311,3127.1,3126.0,0.255]
[1720587996111,2.4311,3127.1,3126.0,2.81411]
[1720587996469,2.4311,3127.1,3126.0,0.255]
[1720587996667,2.4311,3127.1,3126.1,0.2805]
[1720587997281,2.4311,3127.1,3126.0,0.255]
[1720588000998,0.33515315,3127.4,3126.3,2.55]
[1720588001173,3.33515315,3127.4,3126.3,2.55]
[1720588002188,0.33515315,3127.4,3126.4,2.55884]
[1720588002422,0.33515315,3127.4,3126.5,0.510884]
[1720588002978,0.33515315,3127.4,3126.3,2.55]
[1720588006729,0.33515315,3127.4,3126.0,0.255]
[1720588006889,0.33515315,3127.4,3126.0,3.255]
[1720588008326,0.33515315,3127.4,3126.3,2.55]
[1720588008625,0.33515315,3127.4,3126.4,0.255]
[1720588008928,0.33515315,3127.4,3126.3,2.55]
[1720588009914,0.33515315,3127.4,3126.0,3.255]
[1720588010131,0.33515315,3127.4,3126.0,5.81412]
[1720588011305,0.33515315,3127.4,3126.1,2.55909]
[1720588011501,0.33515315,3127.4,3126.0,3.255]
[1720588011706,0.33515315,3127.4,3126.4,2.55885]
[1720588013315,2.3246,3127.5,3126.4,2.55885]
[1720588014834,2.3246,3127.5,3126.5,2.55876]
[1720588021519,2.3246,3127.5,3126.6,2.55867]
[1720588021714,9.7175,3127.9,3126.7,2.55]
[1720588022019,2.2575,3127.9,3127.0,2.55834]
[1720588024453,2.2575,3127.9,3126.8,2.55851]
[1720588024655,2.2575,3127.9,3126.7,2.55]
[1720588026055,2.2575,3127.9,3126.8,0.06395109]
[1720588026235,2.2575,3127.9,3126.9,0.51725511]
[1720588026841,2.2575,3127.9,3127.0,0.06394864]
[1720588027204,2.2575,3127.9,3127.0,2.55835]
[1720588027853,2.2575,3127.9,3127.1,0.06394321]
[1720588028029,2.2575,3127.9,3127.1,2.61394321]
[1720588028348,2.2575,3127.9,3127.2,0.51722932]
[1720588028910,0.33510185,3128.2,3127.7,2.55]
[1720588029118,2.2712,3128.3,3127.7,2.71]
[1720588029544,2.2712,3128.3,3127.7,0.16]
[1720588029745,2.2712,3128.3,3127.7,0.22393255]
[1720588030065,2.2712,3128.3,3127.7,0.50211981]
[1720588030215,2.2712,3128.3,3127.7,0.43818726]
[1720588030918,2.2712,3128.3,3127.7,0.50211983]
[1720588031827,2.2712,3128.3,3127.7,0.43818726]
[1720588032023,2.2712,3128.3,3127.7,0.16]
[1720588033155,2.2777,3128.7,3127.7,0.16]
[1720588033325,2.2777,3128.7,3127.8,0.06393284]
[1720588037578,0.33497782,3128.8,3128.1,2.55]
[1720588037862,0.33497782,3128.8,3128.2,0.31892122]
[1720588038072,0.33497782,3128.8,3128.3,0.06392121]
[1720588038269,0.33497782,3128.8,3128.3,0.06392131]
[1720588038472,0.33497782,3128.8,3128.2,0.255]
[1720588041129,0.33497782,3128.8,3128.1,2.55]
[1720588041331,2.4055,3128.7,3127.2,3.07538932]
[1720588041645,2.4055,3128.6,3126.8,5.1085]
[1720588041877,2.4552,3128.4,3126.9,0.51085]
[1720588042081,2.4552,3128.4,3126.9,0.67085]
[1720588043973,0.4931945,3128.8,3127.3,2.4206]
[1720588044176,0.33497782,3128.8,3127.5,5.10789]
[1720588045494,0.33497782,3128.8,3127.5,5.17182129]
[1720588045784,0.33497782,3128.8,3127.5,2.55]
[1720588046766,0.33497782,3128.8,3127.6,0.06393139]
[1720588046967,0.33497782,3128.8,3127.7,0.51718114]
[1720588047375,0.33497782,3128.8,3127.5,5.10793]
[1720588047597,0.33497782,3128.8,3127.5,2.55]
[1720588048477,2.9227,3128.7,3127.1,2.55]
[1720588048793,2.3727,3128.5,3127.2,0.555]
[1720588049020,2.3727,3128.5,3127.1,2.55]
[1720588049200,2.3727,3128.8,3127.1,5.10827]
[1720588049495,0.33495677,3128.4,3127.2,0.5172202]
[1720588050000,0.33495677,3128.4,3127.3,0.06394061]
[1720588050155,2.3588,3128.3,3127.2,0.5172202]
[1720588050366,2.3588,3128.3,3127.1,2.55]
[1720588051707,2.3588,3128.3,3127.2,0.06394516]
[1720588052826,0.33495677,3128.4,3127.2,0.06394516]
[1720588053124,0.33495677,3128.4,3127.5,2.3982]
[1720588053325,0.33495677,3128.4,3127.6,0.495621]
[1720588054417,0.33495677,3128.4,3127.5,2.3982]
[1720588056791,0.33495677,3128.4,3127.5,4.9482]
[1720588056986,0.33495677,3128.4,3127.6,0.06393446]
[1720588057621,0.33495677,3128.4,3127.9,2.55]
[1720588057789,0.33495677,3128.4,3128.0,2.39662949]
[1720588057994,0.33495677,3128.4,3128.1,0.49466295]
[1720588058828,0.33495677,3128.4,3128.2,0.06392956]
[1720588059334,0.33495677,3128.4,3128.1,0.49466295]
[1720588060290,0.33495677,3128.4,3128.2,2.55735]
[1720588060893,0.33495677,3128.4,3128.1,0.55858222]
[1720588061202,0.33495677,3128.4,3128.2,0.28273629]
[1720588062540,12.2,3129.7,3128.2,0.28273629]
[1720588062541,7.46,3130.1,3128.5,2.55707]
[1720588062696,0.97441,3130.0,3128.6,0.255707]
[1720588062908,0.33485939,3129.1,3128.7,7.58906108]
[1720588063156,2.44261899,3130.2,3128.3,2.55724]
[1720588063462,2.3284,3129.3,3128.2,2.4182]
[1720588063609,0.26632498,3129.2,3128.2,2.4182]
[1720588063951,2.3284,3129.3,3128.2,2.4182]
[1720588065812,2.3284,3129.3,3128.2,4.97557]
[1720588066164,2.3284,3129.3,3128.3,0.06392185]
[1720588066454,2.3284,3129.3,3128.2,4.97557]
[1720588066455,2.3498,3129.7,3128.4,2.55719]
[1720588066654,0.23498,3129.6,3128.4,3.565466]
[1720588067511,3.0,3130.0,3128.6,2.55]
[1720588067714,3.0,3130.0,3128.8,2.55687]
[1720588067924,3.0,3130.0,3128.9,0.06390713]
[1720588073520,2.3105,3129.6,3127.4,4.90541]
[1720588073786,2.3105,3129.2,3127.5,1.237541]
[1720588073993,2.3105,3129.2,3127.4,2.3474]
[1720588074188,0.55,3129.1,3127.4,2.3474]
[1720588074391,3.55,3129.1,3127.4,2.3474]
[1720588074605,0.88605,3129.0,3127.5,0.23474]
[1720588074760,0.55,3128.9,3127.5,0.23474]
[1720588075495,0.88605,3129.0,3127.5,0.23474]
[1720588079304,0.33491348,3128.9,3127.5,0.23474]
[1720588079511,0.75700983,3128.9,3127.6,0.513214]
[1720588080086,0.75700983,3128.9,3127.7,0.06393257]
[1720588080087,0.33491348,3128.9,3127.7,0.06393257]
[1720588080308,0.33491348,3128.9,3127.6,0.513214]
[1720588084184,2.2612,3128.8,3127.6,0.513214]
[1720588085020,2.2612,3128.8,3127.6,3.13501496]
[1720588085621,0.33491348,3128.9,3127.8,2.55]
[1720588087097,0.33491348,3128.9,3127.9,5.274]
[1720588087422,0.33491348,3128.9,3128.4,2.55]
[1720588087985,7.46,3129.5,3128.4,2.55]
[1720588088218,7.46,3129.5,3128.5,0.06391565]
[1720588088530,7.46,3129.5,3128.6,0.26139157]
[1720588088886,7.46,3129.5,3128.0,2.55]
[1720588089195,7.46,3129.5,3128.1,3.0]
[1720588089401,7.46,3129.5,3128.1,5.55746]
[1720588089801,2.2681,3129.4,3128.1,3.0]
[1720588089991,0.97281,3129.3,3128.2,0.555]
[1720588090323,2.2681,3129.2,3127.6,3.063214]
[1720588090628,0.35757917,3129.1,3127.8,0.34001895]
[1720588091323,2.2681,3129.2,3127.9,2.2753]
[1720588091523,2.2681,3129.2,3128.1,2.55746]
[1720588091735,0.3348817,3129.3,3128.6,2.55702]
[1720588091907,2.4495,3129.7,3128.8,2.55]
[1720588092233,7.79483733,3129.9,3128.8,5.17079989]
[1720588092432,7.46,3129.9,3128.8,5.10689]
[1720588092604,7.46,3129.9,3128.9,0.54265019]
[1720588092808,7.46,3129.9,3128.7,3.255702]
[1720588093349,7.46,3129.9,3128.8,2.61390995]
[1720588093511,7.46,3129.9,3129.1,2.5566]
[1720588093843,7.46,3129.9,3128.7,3.255702]
[1720588093844,7.46,3129.9,3129.3,4.99197]
[1720588094023,12.3133201,3130.4,3129.3,4.99197]
[1720588094024,0.1133201,3130.4,3129.4,2.55638]
[1720588094226,0.1133201,3130.4,3129.5,0.06389559]
[1720588094428,0.1133201,3130.4,3129.6,2.81202756]
[1720588094654,0.1133201,3130.4,3129.6,0.26202756]
[1720588094938,0.1133201,3130.4,3129.4,5.55633]
[1720588095342,0.1133201,3130.4,3129.9,2.55594]
[1720588095546,0.1133201,3130.4,3129.6,5.10621]
[1720588095842,0.1133201,3130.4,3129.4,3.0]
[1720588096012,0.1133201,3130.4,3129.4,2.55636]
[1720588096214,0.1133201,3130.4,3129.5,0.799186]
[1720588096558,0.1133201,3130.4,3130.0,2.55589]
[1720588096704,0.1133201,3130.4,3130.0,2.55]
[1720588096898,3.93134159,3133.4,3130.0,2.55]
[1720588096899,7.46,3132.1,3130.9,2.4528]
[1720588097116,9.8092,3132.7,3131.4,2.55474]
[1720588097345,9.8092,3132.7,3130.9,2.4528]
[1720588097555,0.33465182,3132.6,3130.9,2.4528]
[1720588097730,0.33465182,3132.6,3130.9,8.00793]
[1720588098045,0.33465182,3132.6,3131.1,2.55]
[1720588098216,2.3492,3132.4,3130.6,2.55541]
[1720588099019,2.3492,3132.4,3130.8,2.55518]
[1720588099221,2.3492,3132.4,3130.0,2.55582]
[1720588099222,2.3492,3132.0,3129.8,12.47884]
[1720588099442,2.3492,3131.8,3129.5,3.355416]
[1720588099645,2.3492,3131.6,3129.5,0.799186]
[1720588100006,5.3492,3131.6,3129.3,2.51668977]
[1720588100358,2.3492,3131.5,3129.3,2.4528]
[1720588100509,3.392,3130.4,3127.9,2.55758]
[1720588100843,3.392,3130.4,3128.1,2.55742]
[1720588100844,5.3492,3130.3,3128.1,2.55742]
[1720588101017,5.8992,3130.3,3128.3,2.55727]
[1720588101222,0.62202,3130.2,3128.4,0.32603103]
[1720588101406,0.62202,3130.2,3128.6,2.55703]
[1720588102658,0.62202,3130.2,3128.6,0.16]
[1720588102821,0.62202,3130.2,3128.6,2.7809119]
[1720588103154,0.62202,3130.2,3128.6,0.16]
[1720588103308,1.147122,3130.1,3128.6,0.16]
[1720588103738,4.539122,3130.1,3128.6,0.16]
[1720588104041,3.0,3130.0,3128.6,0.16]
[1720588104259,0.55,3129.9,3128.6,0.16]
[1720588104429,0.355,3129.8,3128.6,0.16]
[1720588105425,0.597122,3130.1,3128.7,0.06391561]
[1720588106162,0.597122,3130.1,3128.6,0.16]
[1720588107273,0.597122,3130.1,3128.6,0.22390911]
[1720588107414,0.597122,3130.1,3128.7,4.84336]
[1720588107618,2.3492,3130.3,3128.8,0.06390394]
[1720588108027,2.3492,3130.3,3128.8,2.62078394]
[1720588108262,2.4187,3131.0,3128.8,2.62078394]
[1720588108431,0.58107,3130.9,3129.1,2.55664]
[1720588108637,0.58107,3130.9,3129.2,0.06389766]
[1720588109762,0.58107,3130.9,3128.9,0.49071839]
[1720588109919,0.55,3130.8,3128.8,3.0]
[1720588110129,0.55,3130.8,3128.7,5.2864]
[1720588110348,0.55,3130.8,3128.7,2.2864]
[1720588110549,3.392,3130.7,3128.7,2.2864]
[1720588110826,3.9442,3130.6,3128.6,0.16]
[1720588111026,2.2863,3130.5,3128.6,0.16]
[1720588111271,3.392,3130.3,3128.6,0.16]
[1720588111563,3.55,3130.2,3128.6,0.16]
[1720588111735,0.6942,3130.1,3128.6,0.16]
[1720588112066,0.55,3130.0,3128.6,0.16]
[1720588112429,2.3032,3129.9,3128.6,0.16]
[1720588112630,8.6952,3129.9,3128.6,0.16]
[1720588112826,0.88484382,3129.8,3128.6,0.16]
[1720588113152,0.95800438,3129.7,3128.6,0.16]
[1720588114261,0.55,3129.6,3128.6,0.16]
[1720588114757,2.4593,3129.4,3128.6,0.16]
[1720588115172,0.55,3129.3,3128.6,0.16]
[1720588115379,3.55,3129.3,3128.6,0.16]
[1720588115667,3.392,3129.1,3128.6,0.16]
[1720588115983,3.392,3129.1,3127.4,7.47]
[1720588115984,3.55,3129.0,3127.4,7.47]
[1720588116127,3.55,3129.0,3127.1,2.2698]
[1720588116128,2.2539,3128.9,3127.1,2.2698]
[1720588116477,1.13039,3128.8,3127.1,2.2698]
[1720588116640,3.392,3128.7,3126.6,2.3731]
[1720588116863,3.392,3128.7,3126.6,2.43704398]
[1720588116864,3.55,3128.6,3126.6,2.43704398]
[1720588117059,3.55,3128.6,3126.6,4.99571398]
[1720588117258,0.6942,3128.5,3126.7,0.4995714]
[1720588117767,0.55,3128.4,3126.6,2.3731]
[1720588119351,0.55,3128.4,3126.6,5.3731]
[1720588120946,0.55,3128.4,3126.6,2.3731]
[1720588121452,2.3955,3128.3,3126.6,2.3731]
[1720588121659,0.29455,3128.2,3126.7,0.23731]
[1720588122084,0.29455,3128.2,3126.7,3.23731]
[1720588122291,2.3955,3128.8,3126.8,2.62244732]
[1720588122499,2.3955,3128.8,3126.9,3.0]
[1720588122641,2.3955,3128.8,3127.0,3.45594045]
[1720588122849,2.66715,3128.8,3127.2,2.55819]
[1720588123093,2.66715,3128.8,3127.3,0.06393677]
[1720588123381,2.66715,3128.8,3127.3,3.06393677]
[1720588123548,2.66715,3128.8,3127.3,0.06393677]
[1720588123748,2.66715,3128.8,3127.3,0.43489005]
[1720588123749,0.266715,3128.7,3127.3,0.43489005]
[1720588123977,0.816715,3128.7,3127.3,0.43489005]
[1720588124202,0.816715,3128.7,3127.3,0.06393697]
[1720588124896,0.816715,3128.7,3127.3,0.06394046]
[1720588125767,2.3955,3128.8,3127.5,2.55793]
[1720588125954,2.3955,3128.8,3127.4,2.55796]
[1720588126155,2.3955,3128.8,3127.5,3.0]
[1720588126386,2.3955,3128.8,3127.3,0.06394046]
[1720588126555,2.3955,3128.8,3127.3,0.37033451]
[1720588126756,2.3955,3128.8,3127.3,0.30639405]
[1720588127097,2.3955,3128.8,3127.4,2.55801]
[1720588127303,2.3955,3128.8,3127.5,3.0]
[1720588127802,2.3955,3128.8,3127.3,3.30639405]
[1720588127959,0.78955,3128.7,3127.0,2.55835]
[1720588128160,1.12448344,3128.7,3127.0,2.55835]
[1720588129568,1.12448344,3128.7,3126.8,2.55852]
[1720588129804,0.35199834,3128.6,3126.9,3.279583]
[1720588130004,0.55,3128.5,3126.9,3.279583]
[1720588130697,0.55,3128.5,3127.0,0.06394599]
[1720588130889,0.55,3128.5,3126.9,3.279583]
[1720588130890,0.35199834,3128.6,3127.2,2.55818]
[1720588131700,0.35199834,3128.6,3127.3,2.55811]
[1720588132573,0.35199834,3128.6,3127.4,0.06393553]
[1720588132814,0.35199834,3128.6,3127.5,0.26220455]
[1720588133108,0.33493344,3128.7,3127.6,0.06393552]
[1720588133615,0.33493344,3128.7,3127.5,0.26220455]
[1720588134496,0.33493344,3128.7,3127.5,0.06393164]
[1720588134716,0.33493344,3128.7,3127.4,3.0]
[1720588134717,0.33493344,3128.7,3127.1,5.62219984]
[1720588134872,0.33493344,3128.7,3127.4,2.55802]
[1720588135078,0.33493344,3128.7,3127.5,3.06393404]
[1720588135291,0.33493344,3128.7,3127.6,0.5621954]
[1720588135490,0.55,3128.6,3127.2,0.06393408]
[1720588136011,0.33493344,3128.7,3127.2,0.06393408]
[1720588136213,0.55,3128.6,3127.1,3.0]
[1720588136412,0.55,3128.6,3127.2,0.65257117]
[1720588136590,0.55,3128.6,3127.3,0.06394176]
[1720588136791,0.55,3128.6,3127.2,0.58862983]
[1720588137010,0.55,3128.6,3127.3,0.06394206]
[1720588137221,0.33493344,3128.7,3127.3,0.06394206]
[1720588137516,0.27304334,3128.6,3127.3,0.36525719]
[1720588137724,0.27304334,3128.6,3127.2,0.58862983]
[1720588137926,0.33493344,3128.7,3127.3,0.06393895]
[1720588138073,0.33493344,3128.7,3127.2,3.14680983]
[1720588138818,0.33493344,3128.7,3127.9,2.5576]
[1720588138990,0.33493344,3128.7,3128.5,2.55708]
[1720588139198,2.2512,3129.4,3128.6,0.65882152]
[1720588140706,2.2512,3129.4,3128.6,0.594908]
[1720588141294,2.2512,3129.4,3128.4,3.392]
[1720588141521,2.2512,3129.4,3128.5,3.0]
[1720588141719,2.2512,3129.4,3128.6,2.62094277]
[1720588141936,2.2512,3129.4,3128.6,2.55703]
[1720588142088,2.2512,3129.4,3128.7,0.555703]
[1720588142486,2.2512,3129.4,3128.7,0.61961515]
[1720588142804,2.2512,3129.4,3128.8,0.06391215]
[1720588143033,2.402,3129.9,3128.8,0.06391215]
[1720588143327,1.01968346,3129.8,3128.8,0.38157667]
[1720588143834,1.01968346,3129.8,3128.8,3.77357667]
[1720588144318,2.402,3129.9,3128.9,0.06390786]
[1720588144517,2.402,3129.9,3128.8,3.70966452]
[1720588145339,2.402,3129.9,3128.9,0.06390786]
[1720588145483,7.79483462,3130.0,3129.2,3.392]
[1720588146399,0.33483462,3130.0,3129.2,3.392]
[1720588146611,0.33483462,3130.0,3128.8,3.70966452]
[1720588147017,2.8771,3129.9,3128.5,3.0]
[1720588147219,2.3271,3129.9,3128.5,3.0]
[1720588147991,0.55,3129.8,3128.4,3.392]
[1720588148187,3.81619346,3129.8,3128.4,3.392]
[1720588148386,2.3814,3129.7,3128.4,3.392]
[1720588148713,0.55,3129.6,3128.4,3.392]
[1720588149311,2.3814,3129.5,3128.0,3.392]
[1720588149626,2.3814,3129.3,3128.0,3.392]
[1720588149831,2.3814,3129.3,3127.6,0.33566254]
[1720588149832,2.3814,3129.3,3128.4,3.392]
[1720588150039,2.61954,3129.3,3128.4,3.392]
[1720588151729,2.61954,3129.3,3128.0,3.392]
[1720588152634,2.61954,3129.3,3127.3,7.47]
[1720588152635,2.358,3129.1,3126.9,10.55339187]
[1720588152818,2.358,3128.9,3127.1,3.392]
[1720588153031,2.9321,3128.8,3127.1,3.392]
[1720588153204,2.3821,3128.6,3127.1,3.392]
[1720588153403,1.08821,3128.5,3127.1,3.392]
[1720588153637,4.08821,3128.5,3127.1,3.392]
[1720588153835,4.08821,3128.5,3126.7,3.392]
[1720588153836,2.3821,3128.4,3126.7,3.392]
[1720588154132,1.197031,3128.3,3126.7,3.97394]
[1720588154350,2.3039,3128.2,3126.7,3.392]
[1720588154509,0.55,3128.1,3126.3,3.392]
[1720588154716,2.4998,3128.0,3125.9,15.75374]
[1720588154910,0.79998,3127.9,3126.0,4.134544]
[1720588155227,4.13498302,3127.9,3126.0,4.134544]
[1720588155764,4.13498302,3127.9,3126.0,1.575374]
[1720588156252,2.2934,3127.8,3125.9,3.392]
[1720588156550,0.55,3127.7,3125.9,3.392]
[1720588156955,2.3908,3127.6,3125.5,3.392]
[1720588157117,0.29408,3127.5,3125.6,0.831065]
[1720588157464,0.55,3127.4,3125.6,0.831065]
[1720588158085,2.3908,3127.3,3125.6,0.831065]
[1720588158360,0.55,3127.2,3125.6,0.831065]
[1720588158508,0.59408,3127.1,3125.6,0.831065]
[1720588158714,0.55,3127.0,3125.6,0.831065]
[1720588159339,0.59408,3127.1,3125.6,0.831065]
[1720588160144,0.59408,3127.1,3125.6,3.390555]
[1720588160819,0.59408,3127.1,3125.6,0.831065]
[1720588161020,0.359408,3127.0,3125.6,0.831065]
[1720588161549,2.3391,3126.9,3125.1,3.392]
[1720588161719,2.8891,3126.9,3125.1,3.392]
[1720588161934,3.0,3126.8,3125.1,3.392]
[1720588162134,0.55,3126.7,3125.1,3.392]
[1720588162372,0.355,3126.6,3125.1,4.216519]
[1720588163730,2.3708,3126.5,3124.4,2.56048]
[1720588163927,2.9208,3126.5,3124.5,2.5604]
[1720588164131,2.9208,3126.5,3124.6,0.25604]
[1720588164132,2.3708,3126.3,3124.6,0.25604]
[1720588164331,0.55,3126.2,3124.3,5.95253]
[1720588164946,0.55,3126.2,3124.4,2.56049]
[1720588165280,0.55,3126.2,3124.5,3.0]
[1720588165630,3.55,3126.2,3124.3,3.392]
[1720588165862,2.3791,3126.0,3124.3,3.392]
[1720588166071,0.55,3125.9,3124.3,3.392]
[1720588166258,0.55,3125.9,3123.9,3.392]
[1720588166259,2.3791,3125.8,3123.9,3.392]
[1720588166436,2.97201,3125.8,3124.0,0.3392]
[1720588166643,3.55,3125.7,3124.0,0.3392]
[1720588167396,3.55,3125.7,3123.6,5.02944]
[1720588167397,2.3791,3125.6,3123.3,2.56137]
[1720588167679,2.3791,3125.4,3123.3,2.56137]
[1720588167982,2.3791,3125.3,3123.3,2.56137]
[1720588168193,2.3791,3125.3,3123.0,2.56162]
[1720588168194,2.3791,3125.2,3123.0,2.56162]
[1720588168349,2.61701,3125.2,3123.1,0.256162]
[1720588168550,2.3791,3125.0,3122.9,2.56172]
[1720588168867,2.3791,3124.8,3122.9,2.56172]
[1720588169054,2.3791,3124.6,3123.0,0.51235]
[1720588169247,2.3791,3124.6,3122.8,2.56178]
[1720588169447,2.9291,3124.5,3122.4,2.56213]
[1720588169654,2.3791,3124.3,3122.5,0.256213]
[1720588169897,2.3791,3124.3,3122.3,2.5622]
[1720588170052,2.3791,3124.1,3122.1,2.56236]
[1720588170254,5.3791,3124.1,3122.2,2.56228]
[1720588170450,0.93297338,3124.0,3122.3,2.90425188]
[1720588170666,0.55,3123.9,3122.3,2.56221]
[1720588171389,0.71,3123.9,3122.4,2.56211]
[1720588171577,0.44829734,3123.8,3122.4,2.818321]
[1720588174469,0.44829734,3123.8,3122.4,0.256211]
[1720588174886,0.44829734,3123.8,3122.4,2.818311]
[1720588175197,0.44829734,3123.8,3122.4,0.256211]
[1720588175902,0.44829734,3123.8,3121.9,8.95451]